bitfinex/quotes_BTCUSD_20250730
["timestamp","ask_amount","ask_price","bid_price","bid_amount"]
[1753908825482,0.18894,117300.0,117280.0,0.06684165]
[1753908825710,0.13024,117290.0,117280.0,0.06684165]
[1753908825923,0.13820518,117290.0,117280.0,0.06671]
[1753908826188,0.13820518,117290.0,117280.0,0.06471]
[1753908826609,0.13820518,117290.0,117280.0,0.06171]
[1753908826909,0.19694518,117290.0,117280.0,0.00323]
[1753908827117,0.19694518,117290.0,117280.0,0.00523]
[1753908827343,0.19694518,117290.0,117280.0,0.002]
[1753908827847,0.21288348,117290.0,117280.0,0.002]
[1753908828077,0.21288348,117290.0,117280.0,0.004]
[1753908828535,0.21288348,117290.0,117280.0,0.002]
[1753908828966,0.15414348,117290.0,117280.0,0.06473]
[1753908829195,0.13024,117290.0,117280.0,0.06473]
[1753908830328,0.36728265,117310.0,117280.0,0.06473]
[1753908830584,0.34,117290.0,117280.0,0.00713165]
[1753908830811,0.34,117290.0,117280.0,0.005]
[1753908831035,0.34,117290.0,117280.0,0.0615]
[1753908831491,0.34,117290.0,117280.0,0.06173]
[1753908831928,0.34,117290.0,117280.0,0.06273]
[1753908832337,0.34,117290.0,117280.0,0.06173]
[1753908832749,0.34,117290.0,117280.0,0.06473]
[1753908834066,0.34,117290.0,117280.0,0.09741]
[1753908834932,0.1302,117290.0,117280.0,0.09741]
[1753908835162,0.35334296,117300.0,117280.0,0.09741]
[1753908835383,0.1302,117290.0,117280.0,0.005]
[1753908835607,0.16953522,117290.0,117280.0,0.005]
[1753908835833,0.16101,117290.0,117280.0,0.005]
[1753908836048,0.20093522,117290.0,117280.0,0.002]
[1753908836270,0.22651182,117290.0,117280.0,0.002]
[1753908836496,0.46439273,117290.0,117280.0,0.002]
[1753908836738,0.49043095,117290.0,117280.0,0.002]
[1753908836948,0.48190544,117290.0,117280.0,0.002]
[1753908837585,0.48190544,117290.0,117280.0,0.004]
[1753908837820,0.31991336,117290.0,117280.0,0.004]
[1753908838035,0.31991336,117290.0,117280.0,0.002]
[1753908838257,0.18971336,117290.0,117280.0,0.002]
[1753908838486,0.31142704,117290.0,117280.0,0.005]
[1753908839037,0.31995262,117290.0,117280.0,0.005]
[1753908839259,0.31142704,117290.0,117280.0,0.005]
[1753908839482,0.0305,117290.0,117280.0,0.06901]
[1753908839707,0.34,117290.0,117280.0,0.10166]
[1753908839919,0.34,117290.0,117280.0,0.54178723]
[1753908840289,0.47096,117290.0,117280.0,0.13406]
[1753908841361,0.34,117290.0,117280.0,0.13406]
[1753908842256,0.34,117290.0,117280.0,0.2185373]
[1753908844482,0.34,117290.0,117280.0,0.10166]
[1753908844670,0.34,117290.0,117280.0,0.10379165]
[1753908844823,0.34,117290.0,117280.0,0.06577]
[1753908845037,0.34,117290.0,117280.0,0.005]
[1753908845529,0.34,117290.0,117280.0,0.06577]
[1753908845964,0.34,117290.0,117280.0,0.06901]
[1753908848857,0.34,117290.0,117280.0,0.06577]
[1753908849677,0.34,117290.0,117280.0,0.06901]
[1753908850302,0.37852522,117290.0,117280.0,0.005]
[1753908851178,0.38705058,117290.0,117280.0,0.005]
[1753908851390,0.38747058,117290.0,117280.0,0.005]
[1753908851764,0.38705058,117290.0,117280.0,0.005]
[1753908851977,0.37852522,117290.0,117280.0,0.005]
[1753908852141,0.38705058,117290.0,117280.0,0.005]
[1753908852338,0.37852522,117290.0,117280.0,0.005]
[1753908852799,0.38705051,117290.0,117280.0,0.005]
[1753908853364,2.90879125,117290.0,117280.0,0.005]
[1753908853629,2.90026545,117290.0,117280.0,0.005]
[1753908853926,2.90026538,117290.0,117280.0,0.005]
[1753908854128,2.90879103,117290.0,117280.0,0.005]
[1753908854639,2.90026538,117290.0,117280.0,0.005]
[1753908855435,2.89984538,117290.0,117280.0,0.005]
[1753908855645,2.90837103,117290.0,117280.0,0.005]
[1753908856232,2.89984538,117290.0,117280.0,0.005]
[1753908857332,2.90837103,117290.0,117280.0,0.005]
[1753908858176,2.86061987,117290.0,117280.0,0.005]
[1753908859699,2.86061987,117290.0,117280.0,0.06577]
[1753908860690,2.99137987,117290.0,117280.0,0.06577]
[1753908861356,2.99990538,117290.0,117280.0,0.06577]
[1753908861587,2.99990538,117290.0,117280.0,0.005]
[1753908862263,2.99137987,117290.0,117280.0,0.06577]
[1753908863868,2.965804,117290.0,117280.0,0.06577]
[1753908868383,2.965804,117290.0,117280.0,0.06891]
[1753908869064,2.965804,117290.0,117280.0,0.06577]
[1753908869810,2.965804,117290.0,117280.0,0.005]
[1753908869811,3.12888688,117290.0,117280.0,0.005]
[1753908870015,3.0975321,117290.0,117280.0,0.005]
[1753908870211,3.10605775,117290.0,117280.0,0.005]
[1753908870415,3.0975321,117290.0,117280.0,0.005]
[1753908870697,3.10605783,117290.0,117280.0,0.005]
[1753908871451,3.10605783,117290.0,117280.0,0.06232]
[1753908871452,2.8895213,117290.0,117280.0,0.06232]
[1753908871630,0.5882173,117290.0,117280.0,0.0676]
[1753908871782,0.59674266,117290.0,117280.0,0.0676]
[1753908872224,0.5551173,117290.0,117280.0,0.0676]
[1753908872439,0.34,117290.0,117280.0,0.0676]
[1753908872689,0.4706,117290.0,117280.0,0.0989]
[1753908872913,0.47912536,117290.0,117280.0,0.0676]
[1753908873146,0.4706,117290.0,117280.0,0.0676]
[1753908873335,0.47912536,117290.0,117280.0,0.0676]
[1753908873917,0.48765072,117290.0,117280.0,0.0676]
[1753908874145,3.08682326,117290.0,117280.0,0.005]
[1753908874325,3.28734129,117290.0,117280.0,0.005]
[1753908874904,3.27029035,117290.0,117280.0,0.005]
[1753908875530,0.80524635,117290.0,117280.0,0.005]
[1753908875771,3.27029035,117290.0,117280.0,0.005]
[1753908875970,3.26176462,117290.0,117280.0,0.005]
[1753908876192,3.27908043,117290.0,117280.0,0.005]
[1753908877285,3.27908043,117290.0,117280.0,0.002]
[1753908877286,3.26176462,117290.0,117280.0,0.002]
[1753908877530,2.465044,117280.0,117270.0,0.06046]
[1753908877778,0.13064,117280.0,117270.0,0.03718]
[1753908878150,0.13064,117280.0,117270.0,0.0945]
[1753908878525,0.13916594,117280.0,117270.0,0.0945]
[1753908879166,0.14769203,117280.0,117270.0,0.0945]
[1753908879638,0.14769203,117280.0,117270.0,0.0965]
[1753908879843,0.15621826,117280.0,117270.0,0.0646]
[1753908880478,0.15625819,117280.0,117270.0,0.0646]
[1753908881097,0.16478442,117280.0,117270.0,0.0646]
[1753908881549,0.16478479,117280.0,117270.0,0.06246]
[1753908881743,0.19738479,117280.0,117270.0,0.06246]
[1753908882183,0.17180609,117280.0,117270.0,0.06246]
[1753908882395,0.16107701,117280.0,117270.0,0.06246]
[1753908883718,0.38126227,117280.0,117270.0,0.05932]
[1753908883930,3.26225734,117280.0,117270.0,0.05932]
[1753908884224,3.26225734,117280.0,117270.0,0.002]
[1753908884396,3.26225734,117280.0,117270.0,0.05932]
[1753908884604,3.25373103,117280.0,117270.0,0.05932]
[1753908885428,3.08319897,117280.0,117270.0,0.05932]
[1753908885644,3.09172513,117280.0,117270.0,0.06046]
[1753908885979,3.09272513,117280.0,117270.0,0.06146]
[1753908886595,3.34773449,117280.0,117270.0,0.06146]
[1753908886799,3.33920833,117280.0,117270.0,0.05832]
[1753908886983,3.25473103,117280.0,117270.0,0.05832]
[1753908888255,0.78968703,117280.0,117270.0,0.05832]
[1753908888464,3.25473103,117280.0,117270.0,0.05832]
[1753908891113,3.24620465,117280.0,117270.0,0.05832]
[1753908893088,3.21360465,117280.0,117270.0,0.06146]
[1753908894246,3.15747847,117280.0,117270.0,0.06146]
[1753908894454,3.17082379,117280.0,117270.0,0.06146]
[1753908894947,3.15747847,117280.0,117270.0,0.06146]
[1753908895553,3.18757847,117280.0,117270.0,0.06146]
[1753908898862,3.20092376,117280.0,117270.0,0.06146]
[1753908900181,3.28540106,117280.0,117270.0,0.05832]
[1753908900366,0.73587976,117280.0,117270.0,0.05832]
[1753908900572,3.20092376,117280.0,117270.0,0.05832]
[1753908900879,3.18757847,117280.0,117270.0,0.05832]
[1753908901958,3.24875834,117280.0,117270.0,0.001]
[1753908904825,2.96577248,117280.0,117270.0,0.05683]
[1753908905026,3.06671123,117280.0,117270.0,0.06198]
[1753908905228,3.06671123,117280.0,117270.0,0.09508]
[1753908905437,3.2372432,117280.0,117270.0,0.09508]
[1753908905876,3.06671114,117280.0,117270.0,0.09508]
[1753908906086,3.20961878,117280.0,117270.0,0.06198]
[1753908906290,3.23961878,117280.0,117270.0,0.05987]
[1753908906498,3.2567334,117280.0,117270.0,0.05987]
[1753908906720,3.5978134,117280.0,117270.0,0.05987]
[1753908906941,3.4674934,117280.0,117270.0,0.05987]
[1753908907087,3.5721724,117280.0,117270.0,0.05987]
[1753908907291,3.5978124,117280.0,117270.0,0.05987]
[1753908907508,3.62749227,117280.0,117270.0,0.001]
[1753908907717,3.66059227,117280.0,117270.0,0.001]
[1753908909180,3.64607506,117280.0,117270.0,0.001]
[1753908909362,3.45096923,117280.0,117270.0,0.05683]
[1753908909500,3.60002782,117280.0,117270.0,0.05987]
[1753908909912,3.62607078,117280.0,117270.0,0.05987]
[1753908910559,3.26617171,117280.0,117270.0,0.12538]
[1753908910764,3.34965807,117280.0,117270.0,0.12538]
[1753908910924,3.35818445,117280.0,117270.0,0.12538]
[1753908911125,3.34965807,117280.0,117270.0,0.12538]
[1753908911580,3.35818438,117280.0,117270.0,0.12538]
[1753908911818,3.34965807,117280.0,117270.0,0.12538]
[1753908912708,3.33260582,117280.0,117270.0,0.12538]
[1753908912880,3.11784852,117280.0,117270.0,0.12538]
[1753908913110,3.23474251,117280.0,117270.0,0.12538]
[1753908913256,0.63945851,117280.0,117270.0,0.12538]
[1753908913701,0.76973851,117280.0,117270.0,0.12538]
[1753908914130,0.63945851,117280.0,117270.0,0.12538]
[1753908914337,0.76973851,117280.0,117270.0,0.12538]
[1753908915106,0.63945851,117280.0,117270.0,0.12538]
[1753908915314,0.76973851,117280.0,117270.0,0.12538]
[1753908920857,0.63945851,117280.0,117270.0,0.12538]
[1753908921071,0.76973851,117280.0,117270.0,0.12538]
[1753908922144,0.99395161,117280.0,117270.0,0.001]
[1753908922351,3.58477697,117280.0,117270.0,0.001]
[1753908922613,3.57625088,117280.0,117270.0,0.001]
[1753908922802,3.56772472,117280.0,117270.0,0.001]
[1753908923213,3.36599222,117280.0,117270.0,0.001]
[1753908923411,3.37451875,117280.0,117270.0,0.001]
[1753908923787,3.37451875,117280.0,117270.0,0.05683]
[1753908923995,3.38304535,117280.0,117270.0,0.05683]
[1753908924202,3.37451875,117280.0,117270.0,0.05683]
[1753908925040,3.38304535,117280.0,117270.0,0.05683]
[1753908925278,3.54505125,117280.0,117270.0,0.05683]
[1753908925487,3.21865968,117280.0,117270.0,0.08743]
[1753908925677,3.33623198,117280.0,117270.0,0.12258]
[1753908926279,3.33623177,117280.0,117270.0,0.09258]
[1753908926483,3.34475793,117280.0,117270.0,0.09258]
[1753908926635,3.10450251,117280.0,117270.0,0.12258]
[1753908927037,3.23466251,117280.0,117270.0,0.12258]
[1753908927701,0.76961851,117280.0,117270.0,0.12258]
[1753908927971,3.23466251,117280.0,117270.0,0.12258]
[1753908931295,3.10450251,117280.0,117270.0,0.12258]
[1753908931543,0.76961851,117280.0,117270.0,0.12258]
[1753908931771,0.63945851,117280.0,117270.0,0.12258]
[1753908931956,0.76961851,117280.0,117270.0,0.53061475]
[1753908932114,0.76961851,117280.0,117270.0,0.12258]
[1753908932333,0.68208,117280.0,117270.0,0.53274658]
[1753908932534,0.68208,117280.0,117270.0,0.61509205]
[1753908932784,0.34208,117280.0,117270.0,0.61509205]
[1753908932967,0.34208,117280.0,117270.0,0.76270107]
[1753908933179,0.001,117280.0,117270.0,0.76270107]
[1753908933368,0.13191056,117310.0,117300.0,0.0642]
[1753908933560,0.4706,117320.0,117310.0,0.0326]
[1753908933834,0.4706,117320.0,117310.0,0.12616]
[1753908933835,2.935644,117320.0,117310.0,0.12616]
[1753908934612,2.93579011,117320.0,117310.0,0.12616]
[1753908934823,2.93679011,117320.0,117310.0,0.12616]
[1753908935032,2.93679011,117320.0,117310.0,0.12716]
[1753908936022,2.95013093,117320.0,117310.0,0.12716]
[1753908938183,2.97485103,117320.0,117310.0,0.12716]
[1753908939664,3.00042102,117320.0,117310.0,0.09351]
[1753908939916,3.02157734,117320.0,117310.0,0.001]
[1753908940127,3.00042094,117320.0,117310.0,0.001]
[1753908940401,2.97481103,117320.0,117310.0,0.09556]
[1753908940659,0.37960703,117320.0,117310.0,0.12716]
[1753908941077,0.49642621,117320.0,117310.0,0.12716]
[1753908945958,0.51347236,117320.0,117310.0,0.12716]
[1753908946825,0.50494925,117320.0,117310.0,0.12716]
[1753908947176,0.49642621,117320.0,117310.0,0.12716]
[1753908951543,0.50437044,117320.0,117310.0,0.12716]
[1753908952442,0.03421044,117320.0,117310.0,0.12716]
[1753908952650,0.50433044,117320.0,117310.0,0.12716]
[1753908956126,0.37421044,117320.0,117310.0,0.12716]
[1753908956328,0.50441044,117320.0,117310.0,0.12716]
[1753908958539,0.50437044,117320.0,117310.0,0.12716]
[1753908959329,0.52028279,117320.0,117310.0,0.12716]
[1753908959997,0.50437044,117320.0,117310.0,0.12716]
[1753908960414,0.52028845,117320.0,117310.0,0.12716]
[1753908963969,0.52029737,117320.0,117310.0,0.12716]
[1753908964576,0.39013737,117320.0,117310.0,0.12716]
[1753908966825,0.39015363,117320.0,117310.0,0.12716]
[1753908968080,0.37422868,117320.0,117310.0,0.12716]
[1753908978451,0.00796247,117320.0,117310.0,0.12716]
[1753908978702,2.465044,117320.0,117310.0,0.12716]
[1753908978934,0.00796247,117320.0,117310.0,0.12716]
[1753908979147,0.13856247,117330.0,117310.0,0.12716]
[1753908979364,2.465044,117320.0,117310.0,0.07021]
[1753908979572,2.47300647,117320.0,117310.0,0.07021]
[1753908979802,0.03372211,117320.0,117310.0,0.07021]
[1753908979972,0.53372211,117320.0,117310.0,0.12691]
[1753908980190,0.53372211,117320.0,117310.0,0.12591]
[1753908980843,0.53372211,117320.0,117310.0,0.09431]
[1753908981046,0.37372211,117320.0,117310.0,0.09431]
[1753908981246,0.37372211,117320.0,117310.0,0.12491]
[1753908981463,0.38967915,117320.0,117310.0,0.12491]
[1753908981826,0.38969516,117320.0,117310.0,0.12491]
[1753908983904,0.38969516,117320.0,117310.0,0.09431]
[1753908984122,0.38969516,117320.0,117310.0,0.12491]
[1753908985027,0.38969687,117320.0,117310.0,0.12491]
[1753908985667,0.38969687,117320.0,117310.0,0.09431]
[1753908986322,0.38171855,117320.0,117310.0,0.09431]
[1753908986525,0.40565682,117320.0,117310.0,0.09431]
[1753908986725,0.40565682,117320.0,117310.0,0.12491]
[1753908987164,0.38969797,117320.0,117310.0,0.12491]
[1753908987368,0.38171855,117320.0,117310.0,0.12491]
[1753908987616,0.40565699,117320.0,117310.0,0.12491]
[1753908987826,0.40565699,117320.0,117310.0,0.0326]
[1753908988138,2.465044,117310.0,117300.0,0.19272]
[1753908988356,2.47302348,117310.0,117300.0,0.2792073]
[1753908988565,0.00797948,117310.0,117300.0,0.2792073]
[1753908988786,0.3897467,117320.0,117300.0,0.2769473]
[1753908988984,0.40570461,117320.0,117310.0,0.0626]
[1753908989182,2.87074861,117320.0,117310.0,0.12495]
[1753908989592,2.87074812,117320.0,117310.0,0.12495]
[1753908990458,0.40570412,117320.0,117310.0,0.12495]
[1753908990670,0.40570423,117320.0,117310.0,0.12495]
[1753908993031,0.42275052,117320.0,117310.0,0.09234]
[1753908993252,0.41422727,117320.0,117310.0,0.06034]
[1753908993449,0.40570423,117320.0,117310.0,0.06034]
[1753908995002,0.40570423,117320.0,117310.0,0.09234]
[1753908997613,0.40570423,117320.0,117310.0,0.08914]
[1753908997848,0.40570423,117320.0,117310.0,0.05714]
[1753908998496,0.43820423,117320.0,117310.0,0.05714]
[1753908999949,0.40570423,117320.0,117310.0,0.05714]
[1753909000074,0.38974632,117320.0,117310.0,0.05714]
[1753909000317,0.39826936,117320.0,117310.0,0.05714]
[1753909000530,0.38974632,117320.0,117310.0,0.05714]
[1753909002092,0.42224632,117320.0,117300.0,0.22346]
[1753909002292,2.805044,117310.0,117300.0,0.22346]
[1753909002489,2.9431431,117310.0,117300.0,0.001]
[1753909002753,2.95166694,117310.0,117300.0,0.001]
[1753909002954,2.98416694,117310.0,117300.0,0.001]
[1753909003095,2.465044,117300.0,117290.0,0.25566]
[1753909003297,0.0079791,117300.0,117290.0,0.25767]
[1753909003523,0.51114384,117310.0,117300.0,0.001]
[1753909003685,2.98416301,117310.0,117300.0,0.001]
[1753909003884,2.465044,117300.0,117290.0,0.12554]
[1753909004107,0.00797517,117300.0,117290.0,0.12755]
[1753909004309,0.00797517,117300.0,117290.0,0.05914]
[1753909004310,2.48154258,117300.0,117290.0,0.05914]
[1753909004517,0.38899866,117300.0,117290.0,0.002]
[1753909004736,2.88664266,117300.0,117290.0,0.002]
[1753909004959,3.08272035,117300.0,117290.0,0.005]
[1753909005203,3.15014851,117300.0,117290.0,0.005]
[1753909005374,3.17982838,117300.0,117290.0,0.005]
[1753909005600,3.26430568,117300.0,117290.0,0.005]
[1753909006187,3.26430568,117300.0,117290.0,0.003]
[1753909006389,0.34,117280.0,117270.0,0.22246]
[1753909006702,0.47012,117280.0,117270.0,0.09435]
[1753909007026,0.34,117280.0,117270.0,0.09435]
[1753909007583,0.34004864,117280.0,117270.0,0.12755]
[1753909007831,0.34004864,117280.0,117270.0,0.12955]
[1753909008240,0.34004864,117280.0,117270.0,0.09935]
[1753909010517,0.34857458,117280.0,117270.0,0.06534]
[1753909011527,0.34857458,117280.0,117270.0,0.06234]
[1753909011783,0.38900067,117280.0,117270.0,0.05914]
[1753909011926,0.39752698,117280.0,117270.0,0.003]
[1753909012142,2.87109743,117280.0,117270.0,0.003]
[1753909012345,2.90149743,117280.0,117270.0,0.003]
[1753909012706,2.98597473,117280.0,117270.0,0.003]
[1753909012912,3.14798136,117280.0,117270.0,0.003]
[1753909013122,3.14798136,117280.0,117270.0,0.001]
[1753909013352,3.14798136,117280.0,117270.0,0.002]
[1753909013971,3.14798136,117280.0,117270.0,0.001]
[1753909014187,2.9774493,117280.0,117270.0,0.001]
[1753909014844,2.9774493,117280.0,117260.0,0.06034]
[1753909015056,0.47016,117270.0,117260.0,0.06034]
[1753909015440,0.47868667,117270.0,117260.0,0.06034]
[1753909015688,0.47016,117270.0,117260.0,0.06034]
[1753909016650,0.47016,117270.0,117260.0,0.06134]
[1753909017090,0.47016,117270.0,117260.0,0.09194]
[1753909017283,0.47868667,117270.0,117260.0,0.09294]
[1753909017968,0.48721341,117270.0,117260.0,0.06234]
[1753909018426,0.4957403,117270.0,117260.0,0.06234]
[1753909018839,0.47016,117270.0,117260.0,0.06234]
[1753909019454,0.48721363,117270.0,117260.0,0.06234]
[1753909019635,0.47868674,117270.0,117260.0,0.06234]
[1753909019834,0.48721356,117270.0,117260.0,0.06234]
[1753909020457,0.47868667,117270.0,117260.0,0.06234]
[1753909020665,0.48721349,117270.0,117260.0,0.06234]
[1753909021217,0.47868667,117270.0,117260.0,0.06234]
[1753909021875,0.49574037,117270.0,117260.0,0.06234]
[1753909022116,0.48721341,117270.0,117260.0,0.06234]
[1753909022512,0.49574037,117270.0,117260.0,0.06234]
[1753909022742,0.48721341,117270.0,117260.0,0.06234]
[1753909022981,0.49574023,117270.0,117260.0,0.06234]
[1753909023172,0.48721341,117270.0,117260.0,0.06234]
[1753909023782,0.49574037,117270.0,117260.0,0.06234]
[1753909023912,0.48721341,117270.0,117260.0,0.06234]
[1753909024341,0.49574023,117270.0,117260.0,0.06234]
[1753909024585,0.50426719,117270.0,117260.0,0.06234]
[1753909025370,0.49574023,117270.0,117260.0,0.06234]
[1753909025575,0.47016,117270.0,117260.0,0.06234]
[1753909025824,0.47016,117270.0,117260.0,0.09494]
[1753909026134,0.47016,117270.0,117260.0,0.09698]
[1753909026561,0.47016,117270.0,117260.0,0.12708]
[1753909026782,0.47868667,117270.0,117260.0,0.12708]
[1753909027200,0.47016,117270.0,117260.0,0.12708]
[1753909028035,0.47868667,117270.0,117260.0,0.12708]
[1753909028260,0.47016,117270.0,117260.0,0.12708]
[1753909029216,0.47868667,117270.0,117260.0,0.12708]
[1753909029422,0.47016,117270.0,117260.0,0.12708]
[1753909032653,0.34,117270.0,117260.0,0.12708]
[1753909032903,2.465044,117270.0,117260.0,0.53511475]
[1753909033590,2.465044,117270.0,117260.0,0.66527475]
[1753909033798,2.465044,117270.0,117260.0,0.25724]
[1753909034647,2.365044,117270.0,117260.0,0.25724]
[1753909034876,2.84377858,117280.0,117270.0,0.0624]
[1753909035007,2.71361858,117280.0,117270.0,0.12244]
[1753909035237,2.84377858,117280.0,117270.0,0.12244]
[1753909037373,2.71361858,117280.0,117270.0,0.12244]
[1753909037575,2.84377858,117280.0,117270.0,0.12244]
[1753909037993,2.71361858,117280.0,117270.0,0.12244]
[1753909038419,2.72214474,117280.0,117270.0,0.12244]
[1753909038622,2.72214467,117280.0,117270.0,0.12244]
[1753909039292,2.71361858,117280.0,117270.0,0.12244]
[1753909039702,2.84377858,117280.0,117270.0,0.12244]
[1753909041647,2.85230467,117280.0,117270.0,0.12244]
[1753909042297,2.84377858,117280.0,117270.0,0.12244]
[1753909042753,2.85230467,117280.0,117270.0,0.12244]
[1753909043713,2.85230467,117280.0,117270.0,0.0883]
[1753909043936,3.03136377,117280.0,117260.0,0.1959]
[1753909044136,0.02558059,117270.0,117260.0,0.25086]
[1753909044491,0.03410756,117270.0,117260.0,0.25086]
[1753909044677,0.02558045,117270.0,117260.0,0.25086]
[1753909045044,0.01705356,117270.0,117260.0,0.25086]
[1753909045254,0.68212723,117280.0,117260.0,0.25086]
[1753909045255,0.69918014,117280.0,117260.0,0.2529]
[1753909045448,0.00852667,117270.0,117260.0,0.2539]
[1753909046077,0.69918014,117280.0,117260.0,0.2539]
[1753909046269,0.69918014,117280.0,117260.0,0.19894]
[1753909046270,2.365044,117270.0,117260.0,0.19894]
[1753909046472,2.365044,117270.0,117260.0,0.06878]
[1753909047049,2.365044,117270.0,117260.0,0.12133]
[1753909047241,2.365044,117270.0,117260.0,0.12233]
[1753909047472,0.49574757,117280.0,117260.0,0.12233]
[1753909047691,2.365044,117270.0,117260.0,0.06978]
[1753909048129,0.50427417,117280.0,117260.0,0.06978]
[1753909048388,2.365044,117270.0,117260.0,0.06978]
[1753909048618,0.01705356,117270.0,117260.0,0.03554]
[1753909048834,0.01705356,117270.0,117260.0,0.08809]
[1753909049049,0.01705356,117270.0,117260.0,0.08914]
[1753909049926,0.00852667,117270.0,117260.0,0.08914]
[1753909050151,0.01705349,117270.0,117260.0,0.08914]
[1753909050362,0.02558045,117270.0,117260.0,0.09014]
[1753909050579,0.01705349,117270.0,117260.0,0.09014]
[1753909052084,0.02558045,117270.0,117260.0,0.09014]
[1753909052286,0.02558038,117270.0,117260.0,0.09014]
[1753909052501,0.01705349,117270.0,117260.0,0.09014]
[1753909052949,0.02558045,117270.0,117260.0,0.09014]
[1753909053156,0.03410763,117270.0,117260.0,0.05455]
[1753909053372,0.04745348,117270.0,117260.0,0.05455]
[1753909053637,0.04745348,117270.0,117260.0,0.09296]
[1753909053638,0.37039934,117270.0,117260.0,0.09296]
[1753909053899,0.37039934,117270.0,117260.0,0.12376]
[1753909054137,0.3789263,117270.0,117260.0,0.12376]
[1753909056047,0.38745348,117270.0,117260.0,0.05976]
[1753909056251,0.39598081,117270.0,117260.0,0.05771]
[1753909056461,0.39598073,117270.0,117260.0,0.05771]
[1753909056678,0.56652733,117270.0,117260.0,0.05771]
[1753909056852,0.55800117,117270.0,117260.0,0.05771]
[1753909057058,0.54947421,117270.0,117260.0,0.05771]
[1753909058708,0.37039999,117270.0,117260.0,0.05771]
[1753909059395,0.37039955,117270.0,117260.0,0.05771]
[1753909059600,0.37892666,117270.0,117260.0,0.09091]
[1753909060470,0.55800059,117270.0,117260.0,0.09091]
[1753909060704,0.38745399,117270.0,117260.0,0.05771]
[1753909061950,0.55800059,117270.0,117260.0,0.05771]
[1753909062212,0.38745399,117270.0,117260.0,0.05771]
[1753909062387,0.57164689,117270.0,117260.0,0.05455]
[1753909063595,0.44446029,117270.0,117250.0,0.01448458]
[1753909063818,0.4529871,117270.0,117250.0,0.01448458]
[1753909064042,0.13012,117260.0,117250.0,0.01448458]
[1753909064235,0.13012,117260.0,117250.0,0.01653458]
[1753909065053,0.13012,117260.0,117250.0,0.01753458]
[1753909065264,0.51416585,117270.0,117250.0,0.01753458]
[1753909065481,0.48346585,117270.0,117250.0,0.00621]
[1753909065702,0.49199252,117270.0,117260.0,0.00316]
[1753909065914,0.49199252,117270.0,117260.0,0.05776]
[1753909065915,0.35334585,117270.0,117260.0,0.05776]
[1753909066332,0.37039948,117270.0,117260.0,0.05776]
[1753909066555,0.36187252,117270.0,117260.0,0.05776]
[1753909066761,0.36187252,117270.0,117260.0,0.12176]
[1753909066975,0.36187252,117270.0,117260.0,0.12276]
[1753909067755,0.35334585,117270.0,117260.0,0.12276]
[1753909070167,0.34,117270.0,117260.0,0.12276]
[1753909077453,0.34,117270.0,117260.0,0.09196]
[1753909077820,0.34,117270.0,117260.0,0.12276]
[1753909083393,0.34,117270.0,117260.0,0.12136]
[1753909083600,0.34,117270.0,117260.0,0.25144]
[1753909084068,0.13012864,117280.0,117270.0,0.0626]
[1753909084282,0.50004864,117280.0,117270.0,0.1205]
[1753909084505,0.34004864,117280.0,117270.0,0.1205]
[1753909084971,0.13008,117290.0,117270.0,0.1205]
[1753909085216,2.365044,117280.0,117270.0,0.06475611]
[1753909085868,2.365044,117280.0,117270.0,0.12064611]
[1753909086940,0.001,117280.0,117270.0,0.12064611]
[1753909087145,0.501,117280.0,117270.0,0.12064611]
[1753909087575,0.001,117280.0,117270.0,0.12064611]
[1753909087988,0.501,117280.0,117270.0,0.12064611]
[1753909090358,0.341,117280.0,117270.0,0.12064611]
[1753909112624,0.001,117280.0,117270.0,0.51112354]
[1753909113929,0.5011,117300.0,117280.0,0.0302]
[1753909114135,0.5011,117300.0,117280.0,0.1602]
[1753909114380,0.55314407,117300.0,117280.0,0.21696]
[1753909115484,0.55514407,117300.0,117280.0,0.24716]
[1753909115931,0.55514407,117300.0,117280.0,0.11716]
[1753909116156,0.55614407,117300.0,117280.0,0.24716]
[1753909116597,0.51208407,117300.0,117290.0,0.05676]
[1753909117041,0.51208407,117300.0,117290.0,0.00305]
[1753909117258,0.55614407,117300.0,117290.0,0.00305]
[1753909117817,0.55414407,117300.0,117290.0,0.00305]
[1753909118000,0.42314407,117300.0,117290.0,0.00305]
[1753909118209,0.42514407,117300.0,117290.0,0.00305]
[1753909118414,0.42614407,117300.0,117290.0,0.00305]
[1753909119189,0.01098407,117300.0,117290.0,0.05676]
[1753909119482,0.01098407,117300.0,117290.0,0.08696]
[1753909119731,0.01098407,117300.0,117290.0,0.08909]
[1753909119943,0.35098407,117300.0,117290.0,0.11929]
[1753909120301,0.343,117300.0,117290.0,0.11929]
[1753909120887,0.343,117300.0,117290.0,0.08909]
[1753909121111,0.34897719,117300.0,117290.0,0.08909]
[1753909121325,0.34,117300.0,117290.0,0.09009]
[1753909121545,0.0304,117310.0,117290.0,0.12029]
[1753909121759,2.7130209,117310.0,117300.0,0.1602]
[1753909121876,2.7130209,117310.0,117300.0,0.21696]
[1753909122109,0.3479769,117310.0,117300.0,0.21696]
[1753909122325,0.3479769,117310.0,117300.0,0.21909]
[1753909123661,0.3479769,117310.0,117300.0,0.24929]
[1753909123868,0.3489769,117310.0,117300.0,0.24929]
[1753909124804,0.3479769,117310.0,117300.0,0.24929]
[1753909125550,0.3479769,117310.0,117300.0,0.25029]
[1753909125790,0.3479769,117310.0,117300.0,0.64176743]
[1753909125791,0.0079769,117310.0,117300.0,0.64176743]
[1753909125943,0.03373292,117320.0,117300.0,0.3357673]
[1753909126143,0.00797338,117320.0,117310.0,0.08696]
[1753909126355,0.44845838,117330.0,117310.0,0.08909]
[1753909126552,0.44845838,117330.0,117310.0,0.21905]
[1753909126765,0.42283338,117330.0,117310.0,0.21905]
[1753909126972,0.44845938,117330.0,117310.0,0.21905]
[1753909127194,0.001,117320.0,117310.0,0.21905]
[1753909127394,0.42288208,117330.0,117310.0,0.21905]
[1753909127619,0.42156032,117330.0,117310.0,0.19249]
[1753909127884,0.42356032,117330.0,117320.0,0.18672]